bitfinex-derivatives/quotes_BTCF0:USTF0_20240917
["timestamp","ask_amount","ask_price","bid_price","bid_amount"]
[1726586295655,0.0399713,61244.0,61240.0,0.44]
[1726586296055,0.5298113,61244.0,61240.0,0.44]
[1726586296253,0.014,61241.0,61240.0,0.44]
[1726586296459,0.0539713,61241.0,61240.0,0.44]
[1726586296667,0.014,61241.0,61240.0,0.44]
[1726586296851,0.3748,61256.0,61240.0,0.44]
[1726586297160,0.09008642,61255.0,61239.0,0.38127587]
[1726586297361,0.09008642,61255.0,61239.0,0.02047587]
[1726586297362,0.3748,61244.0,61239.0,0.02047587]
[1726586297582,0.03998424,61243.0,61227.0,0.3608]
[1726586297769,0.3748,61244.0,61237.0,0.44]
[1726586297963,0.3888,61244.0,61237.0,0.44]
[1726586298155,0.3888,61244.0,61236.0,0.081637]
[1726586298453,0.3888,61244.0,61238.0,0.081636]
[1726586298759,0.3888,61244.0,61235.0,0.081639]
[1726586299156,0.3888,61244.0,61238.0,0.521636]
[1726586299667,0.3888,61244.0,61238.0,0.44]
[1726586299856,0.3748,61244.0,61238.0,0.44]
[1726586300057,0.014,61241.0,61238.0,0.44]
[1726586300758,0.3888,61244.0,61238.0,0.44]
[1726586301360,0.014,61241.0,61238.0,0.44]
[1726586302062,0.3748,61244.0,61238.0,0.441]
[1726586302063,0.028,61244.0,61238.0,0.441]
[1726586302866,0.014,61241.0,61238.0,0.441]
[1726586303367,0.081635,61239.0,61238.0,0.001]
[1726586303566,0.028,61241.0,61238.0,0.001]
[1726586304264,0.081635,61239.0,61238.0,0.001]
[1726586304569,0.081641,61234.0,61233.0,0.02055666]
[1726586304769,0.3608,61239.0,61227.0,0.001]
[1726586304770,0.081643,61233.0,61227.0,0.001]
[1726586304961,0.081645,61232.0,61220.0,0.8008]
[1726586305272,0.3608,61239.0,61225.0,0.3608]
[1726586305565,0.3748,61239.0,61238.0,0.001]
[1726586305869,0.081645,61231.0,61224.0,0.081653]
[1726586306063,0.081645,61231.0,61215.0,0.44]
[1726586306064,0.3608,61234.0,61218.0,0.081662]
[1726586306374,0.081645,61231.0,61223.0,0.081656]
[1726586306561,0.081648,61229.0,61223.0,0.081656]
[1726586306865,0.014,61232.0,61220.0,0.001]
[1726586307565,0.095645,61231.0,61222.0,0.081657]
[1726586307869,0.014,61231.0,61218.0,0.001]
[1726586308063,0.3748,61234.0,61218.0,0.001]
[1726586308064,0.014,61232.0,61218.0,0.001]
[1726586308259,0.081661,61219.0,61218.0,0.001]
[1726586308463,0.3608,61222.0,61218.0,0.001]
[1726586308666,0.3608,61222.0,61216.0,0.081664]
[1726586309061,0.3608,61222.0,61217.0,0.081663]
[1726586309365,0.3608,61222.0,61213.0,0.38133522]
[1726586309366,0.095646,61231.0,61213.0,0.38133522]
[1726586309569,0.014,61232.0,61222.0,0.44]
[1726586309769,0.014,61231.0,61228.0,0.44]
[1726586309969,0.14574434,61245.0,61228.0,0.44]
[1726586309970,0.14574434,61263.0,61241.0,0.081632]
[1726586310169,0.3608,61280.0,61229.0,0.94422]
[1726586310170,0.16193817,61269.0,61262.0,0.28]
[1726586310374,0.0082,61279.0,61263.0,0.081602]
[1726586310375,0.03998539,61268.0,61263.0,0.081602]
[1726586310573,0.081588,61274.0,61262.0,0.28]
[1726586311072,0.8592,61234.0,61224.0,0.1677]
[1726586311273,0.8592,61234.0,61171.0,0.07975464]
[1726586311274,0.081684,61202.0,61170.0,0.3608]
[1726586311461,0.3748,61222.0,61196.0,0.28]
[1726586311462,0.39550057,61201.0,61196.0,0.28]
[1726586311664,0.39550057,61201.0,61175.0,0.3608]
[1726586311665,0.3608,61197.0,61180.0,0.3608]
[1726586311860,0.03470057,61196.0,61191.0,0.28]
[1726586312158,0.3608,61197.0,61158.0,0.3608]
[1726586312159,0.3608,61192.0,61158.0,0.3608]
[1726586312362,0.485,61215.0,61158.0,0.3608]
[1726586312363,0.3608,61168.0,61163.0,0.4871]
[1726586312668,0.3608,61170.0,61163.0,0.4871]
[1726586312871,0.3608,61170.0,61158.0,0.02070762]
[1726586313073,0.3608,61170.0,61150.0,0.4809]
[1726586313074,0.3608,61170.0,61161.0,0.44]
[1726586313568,0.3608,61162.0,61161.0,0.44]
[1726586313965,0.3608,61162.0,61161.0,1.53052]
[1726586314465,0.3608,61162.0,61150.0,0.02039566]
[1726586314466,0.3608,61162.0,61158.0,0.001]
[1726586314970,0.7346,61162.0,61161.0,0.001]
[1726586315268,0.7486,61162.0,61161.0,0.001]
[1726586315663,0.3878,61162.0,61161.0,0.001]
[1726586316774,0.3758,61162.0,61158.0,0.001]
[1726586316971,0.3608,61159.0,61158.0,0.001]
[1726586317169,0.3608,61159.0,61138.0,0.3608]
[1726586317368,0.3608,61143.0,61138.0,0.02028183]
[1726586317565,0.3608,61143.0,61136.0,0.44]
[1726586318169,0.3608,61143.0,61136.0,0.521771]
[1726586318369,0.3608,61143.0,61129.0,0.44]
[1726586318665,0.3608,61143.0,61135.0,0.521773]
[1726586318876,0.3608,61136.0,61124.0,0.44]
[1726586319264,0.3608,61136.0,61135.0,0.44]
[1726586319673,0.3608,61155.0,61135.0,0.6]
[1726586319879,0.3608,61155.0,61131.0,0.3608]
[1726586319880,0.014,61143.0,61141.0,0.081765]
[1726586320364,0.3608,61150.0,61143.0,0.081763]
[1726586320569,0.3608,61144.0,61143.0,0.081763]
[1726586320971,0.3608,61144.0,61137.0,0.44]
[1726586321277,0.3608,61138.0,61137.0,0.44]
[1726586321476,0.3608,61138.0,61137.0,0.93068]
[1726586321668,0.3608,61138.0,61137.0,1.53068]
[1726586322167,0.014,61150.0,61138.0,0.49068]
[1726586322366,0.014,61150.0,61143.0,0.44]
[1726586322367,0.3608,61149.0,61143.0,0.44]
[1726586322772,0.3608,61149.0,61146.0,0.081758]
[1726586322965,0.014,61150.0,61149.0,0.081755]
[1726586323774,0.3748,61150.0,61143.0,0.441]
[1726586323973,0.3748,61150.0,61145.0,0.08176]
[1726586324178,0.3748,61150.0,61143.0,0.441]
[1726586324179,0.3878,61150.0,61149.0,0.001]
[1726586324366,0.3738,61150.0,61149.0,0.001]
[1726586324572,0.3738,61150.0,61149.0,0.9316]
[1726586324774,0.013,61150.0,61149.0,0.9316]
[1726586325080,0.013,61150.0,61149.0,1.613355]
[1726586325275,0.015,61150.0,61149.0,0.522755]
[1726586325575,0.3758,61150.0,61149.0,0.522755]
[1726586325778,0.015,61150.0,61149.0,1.03356624]
[1726586326280,0.015,61150.0,61149.0,1.63456624]
[1726586326479,0.003,61150.0,61149.0,1.63456624]
[1726586327177,0.002,61150.0,61149.0,1.63456624]
[1726586327977,0.3608,61167.0,61149.0,1.91361124]
[1726586328168,0.3608,61187.0,61166.0,0.44]
[1726586328370,0.3608,61187.0,61185.0,0.44]
[1726586328579,0.3608,61187.0,61185.0,0.081706]
[1726586328884,0.3608,61187.0,61172.0,0.44]
[1726586329179,0.3608,61195.0,61165.0,0.3608]
[1726586329180,0.3608,61186.0,61180.0,0.081713]
[1726586329384,0.3608,61186.0,61179.0,0.42464283]
[1726586329874,0.3608,61186.0,61172.0,0.44]
[1726586330178,0.3608,61186.0,61174.0,0.44]
[1726586330381,0.24680782,61228.0,61174.0,0.44]
[1726586330681,0.3608,61291.0,61242.0,0.3608]
[1726586330881,0.3608,61291.0,61220.0,0.44]
[1726586330882,0.3608,61279.0,61270.0,0.3608]
[1726586331190,0.3608,61279.0,61259.0,0.3608]
[1726586331191,0.3608,61271.0,61259.0,0.3608]
[1726586331480,0.44,61284.0,61258.0,0.081608]
[1726586331481,0.3608,61265.0,61258.0,0.081608]
[1726586331684,0.3608,61259.0,61249.0,0.00244901]
[1726586331980,0.3608,61250.0,61238.0,0.00244855]
[1726586332181,0.3608,61240.0,61238.0,0.00244855]
[1726586332677,0.85068,61239.0,61225.0,0.00096]
[1726586332887,0.3608,61227.0,61222.0,0.0024501]
[1726586333977,0.93824,61238.0,61222.0,0.0024501]
[1726586333978,0.3608,61230.0,61222.0,0.0024501]
[1726586334283,0.001,61227.0,61222.0,0.0034501]
[1726586334477,0.001,61227.0,61223.0,0.44]
[1726586334682,0.001,61227.0,61226.0,0.3608]
[1726586335093,0.004,61227.0,61226.0,0.8508]
[1726586335784,0.004,61227.0,61226.0,1.4508]
[1726586335986,0.003,61227.0,61226.0,1.4518]
[1726586336284,0.3608,61254.0,61236.0,0.081638]
[1726586336486,0.3608,61254.0,61232.0,0.00244956]
[1726586336487,0.3608,61240.0,61232.0,0.00244956]
[1726586336785,0.3608,61234.0,61232.0,0.00244956]
[1726586336985,0.3608,61234.0,61226.0,0.3628]
[1726586336986,0.001,61227.0,61226.0,0.3628]
[1726586337584,0.014,61227.0,61226.0,0.3618]
[1726586339490,0.014,61227.0,61226.0,0.3628]
[1726586339692,0.014,61227.0,61226.0,0.002]
[1726586339877,0.3608,61234.0,61226.0,0.002]
[1726586340092,0.3608,61257.0,61234.0,0.081641]
[1726586340286,0.44,61245.0,61233.0,0.3618]
[1726586340589,0.3608,61239.0,61233.0,0.3608]
[1726586340984,0.44,61251.0,61233.0,0.442442]
[1726586341180,0.03153903,61250.0,61240.0,0.3608]
[1726586341377,0.14431788,61278.0,61249.0,0.8008]
[1726586341593,0.3608,61281.0,61271.0,0.44]
[1726586341892,0.14431788,61297.0,61264.0,0.3608]
[1726586341893,0.3608,61287.0,61272.0,0.3608]
[1726586342189,0.03996221,61286.0,61277.0,0.3608]
[1726586342400,0.3608,61287.0,61266.0,0.44244833]
[1726586342596,0.001,61278.0,61266.0,0.44244833]
[1726586342785,0.001,61278.0,61275.0,0.43]
[1726586343090,0.001,61278.0,61275.0,0.7908]
[1726586343287,0.3608,61297.0,61276.0,0.4896]
[1726586343589,0.3608,61297.0,61187.0,0.1633]
[1726586343590,0.3608,61214.0,61187.0,0.1633]
[1726586343799,0.3608,61202.0,61189.0,0.00245143]
[1726586344087,0.3608,61200.0,61174.0,0.48639143]
[1726586344295,0.17638781,61254.0,61189.0,0.3608]
[1726586344296,0.3608,61207.0,61189.0,0.3608]
[1726586344486,0.24329501,61207.0,61195.0,0.3608]
[1726586344689,0.3608,61216.0,61195.0,0.3608]
[1726586344690,0.3608,61216.0,61207.0,0.081677]
[1726586344891,0.3608,61222.0,61207.0,0.081677]
[1726586344892,0.3608,61211.0,61207.0,0.081677]
[1726586345086,0.3608,61211.0,61209.0,0.081674]
[1726586345286,0.3608,61222.0,61214.0,0.081668]
[1726586345486,0.3608,61235.0,61221.0,0.44]
[1726586345796,0.3608,61235.0,61217.0,0.00245013]
[1726586345797,0.3608,61229.0,61217.0,0.00245013]
[1726586346202,0.3608,61222.0,61217.0,0.00245013]
[1726586346790,0.44,61219.0,61204.0,0.3608]
[1726586346995,0.95247807,61222.0,61212.0,0.3608]
[1726586347192,0.59167807,61222.0,61212.0,0.3608]
[1726586347385,0.002,61222.0,61217.0,0.001]
[1726586347590,0.002,61222.0,61218.0,0.3608]
[1726586347792,0.3608,61243.0,61221.0,0.3608]
[1726586347984,0.3608,61243.0,61231.0,0.3608]
[1726586348184,0.95247807,61243.0,61231.0,0.3608]
[1726586349106,0.96347807,61243.0,61231.0,0.3608]
[1726586349794,0.96247807,61243.0,61231.0,0.3618]
[1726586350194,0.3608,61237.0,61231.0,0.3628]
[1726586350407,0.3608,61232.0,61226.0,0.00244991]
[1726586350590,0.3608,61232.0,61180.0,0.0082]
[1726586350591,0.081653,61225.0,61206.0,0.3608]
[1726586350785,0.44,61226.0,61206.0,0.3608]
[1726586350994,0.3608,61222.0,61206.0,0.3608]
[1726586351186,0.3608,61222.0,61211.0,0.3608]
[1726586351492,0.95002816,61222.0,61211.0,0.3608]
[1726586352192,0.96102816,61222.0,61216.0,0.44]
[1726586352398,0.96102816,61222.0,61211.0,0.3608]
[1726586352399,0.96102816,61222.0,61211.0,0.8008]
[1726586352696,0.081637,61238.0,61211.0,0.8008]
[1726586352697,0.01061629,61318.0,61313.0,0.3608]
[1726586352896,0.01061629,61318.0,61221.0,0.43]
[1726586352897,0.080145,61314.0,61298.0,0.3608]
[1726586353087,0.03340913,61313.0,61305.0,0.43]
[1726586353294,0.081546,61306.0,61279.0,0.3608]
[1726586353500,0.07334889,61305.0,61293.0,0.3608]
[1726586353696,0.35272051,61313.0,61296.0,0.3608]
[1726586353886,0.081541,61310.0,61296.0,0.3608]
[1726586354086,0.3608,61307.0,61280.0,0.3608]
[1726586354291,0.3608,61288.0,61273.0,0.3608]
[1726586354491,0.3608,61294.0,61280.0,0.3608]
[1726586354697,0.3608,61288.0,61273.0,0.3608]
[1726586355000,0.3608,61278.0,61273.0,0.3608]
[1726586355388,0.3608,61289.0,61273.0,0.3608]
[1726586355593,0.3608,61284.0,61273.0,0.3618]
[1726586355903,0.3608,61284.0,61279.0,0.014]
[1726586356393,0.015,61278.0,61273.0,0.3628]
[1726586357093,0.014,61278.0,61273.0,0.3618]
[1726586357292,0.014,61278.0,61273.0,0.001]
[1726586358099,0.3628,61284.0,61267.0,0.00244828]
[1726586358397,0.3628,61284.0,61279.0,0.001]
[1726586358398,0.3768,61284.0,61279.0,0.001]
[1726586358599,0.3608,61280.0,61279.0,0.001]
[1726586358807,0.3608,61280.0,61267.0,0.00244828]
[1726586358992,0.014,61278.0,61267.0,0.00244828]
[1726586360005,0.3608,61272.0,61267.0,0.00244828]
[1726586360298,0.081586,61276.0,61267.0,0.00244828]
[1726586360502,0.014,61278.0,61267.0,0.00244828]
[1726586360698,0.3608,61272.0,61267.0,0.00344828]
[1726586360905,0.3608,61273.0,61267.0,0.001]
[1726586361700,0.3608,61268.0,61267.0,0.002]
[1726586362308,1.45044,61268.0,61256.0,0.3608]
[1726586362496,0.3608,61268.0,61267.0,0.001]
[1726586362692,1.54050211,61268.0,61267.0,0.00072869]
[1726586363303,1.54050211,61268.0,61267.0,0.00172869]
[1726586363611,1.54050211,61268.0,61256.0,0.3608]
[1726586363612,1.60352919,61268.0,61256.0,0.3608]
[1726586363900,0.081604,61262.0,61256.0,0.3608]
[1726586364100,0.3608,61268.0,61250.0,0.3608]
[1726586364101,0.3608,61259.0,61250.0,0.3608]
[1726586364303,0.3608,61251.0,61238.0,0.00244947]
[1726586364604,0.03152555,61250.0,61243.0,0.081629]
[1726586364797,0.3608,61259.0,61243.0,0.081629]
[1726586364798,0.0315312,61249.0,61243.0,0.081629]
[1726586364998,0.0315312,61248.0,61244.0,0.081627]
[1726586365197,0.3608,61259.0,61244.0,0.081627]
[1726586365198,0.0315312,61247.0,61244.0,0.081627]
[1726586365399,0.081606,61261.0,61225.0,0.3508]
[1726586365400,0.07151024,61246.0,61225.0,0.3508]
[1726586365610,0.60807627,61261.0,61221.0,0.0024501]
[1726586365611,0.07151024,61245.0,61233.0,0.3608]
[1726586365899,0.3608,61254.0,61232.0,0.3608]
[1726586365900,0.3608,61243.0,61232.0,0.3608]
[1726586366092,0.0715104,61242.0,61232.0,0.3608]
[1726586366291,0.0715104,61241.0,61232.0,0.3608]
[1726586366497,0.14517627,61249.0,61240.0,0.3608]
[1726586366707,0.14517627,61249.0,61224.0,0.44]
[1726586366708,0.081627,61245.0,61244.0,0.3608]
[1726586367005,0.081627,61245.0,61243.0,0.001]
[1726586367006,0.20325224,61245.0,61243.0,0.001]
[1726586367301,0.07151123,61244.0,61243.0,0.001]
[1726586367509,0.012,61242.0,61234.0,0.3608]
[1726586367707,0.03153417,61241.0,61240.0,0.8008]
[1726586368589,0.03153417,61241.0,61240.0,0.882433]
[1726586369005,0.04553417,61241.0,61240.0,0.001]
[1726586370403,0.04553417,61241.0,61220.0,0.3608]
[1726586370404,1.16799164,61241.0,61220.0,0.3608]
[1726586370704,0.07151371,61240.0,61222.0,0.44]
[1726586371007,0.02904001,61241.0,61237.0,0.44]
[1726586371195,0.028,61241.0,61240.0,0.442433]
[1726586371397,0.028,61241.0,61240.0,0.3608]
[1726586371591,0.014,61241.0,61237.0,0.44]
[1726586371795,0.028,61241.0,61240.0,0.081633]
[1726586372299,0.028,61241.0,61240.0,0.571513]
[1726586372898,0.028,61241.0,61240.0,0.081633]
[1726586373102,0.028,61241.0,61240.0,0.3608]
[1726586373510,0.028,61241.0,61240.0,0.442433]
[1726586373694,0.007,61241.0,61240.0,0.443433]
[1726586373899,0.021,61241.0,61240.0,0.443433]
[1726586374295,0.3608,61256.0,61240.0,1.45168]
[1726586374502,0.07150325,61255.0,61248.0,0.081622]
[1726586374697,0.07150325,61254.0,61247.0,0.3608]
[1726586374898,0.081618,61252.0,61247.0,0.3608]
[1726586375104,0.3608,61256.0,61247.0,0.3608]
[1726586375105,0.07150275,61251.0,61247.0,0.3608]
[1726586375304,0.07150275,61250.0,61244.0,0.081628]
[1726586375506,0.07150275,61249.0,61248.0,0.081623]
[1726586375909,0.07150275,61249.0,61244.0,0.3608]
[1726586375910,0.03153065,61249.0,61244.0,0.3608]
[1726586376110,0.03153065,61248.0,61244.0,0.3608]
[1726586376405,0.58517627,61262.0,61244.0,0.3608]
[1726586376406,0.14517627,61264.0,61262.0,0.081604]
[1726586376600,0.14517627,61274.0,61263.0,0.44]
[1726586376803,0.03996289,61273.0,61263.0,0.44]
[1726586377004,0.03995802,61272.0,61263.0,0.44]
[1726586377307,0.03995802,61271.0,61270.0,0.521593]
[1726586377504,0.14517627,61284.0,61276.0,0.081584]
[1726586377701,0.14517627,61277.0,61276.0,0.081584]
[1726586378004,0.03995796,61277.0,61276.0,0.081584]
[1726586378206,0.03995109,61277.0,61276.0,0.44]
[1726586378396,0.03995109,61277.0,61276.0,0.521585]
[1726586378598,0.03995109,61277.0,61276.0,0.872385]
[1726586379208,0.03995109,61277.0,61276.0,0.882385]
[1726586379711,0.05395109,61277.0,61276.0,0.873385]
[1726586380204,0.06595109,61277.0,61276.0,0.874385]
[1726586380513,0.026,61277.0,61276.0,0.874385]
[1726586380809,0.026,61277.0,61276.0,1.963985]
[1726586381108,0.06594836,61277.0,61276.0,1.963985]
[1726586381512,0.06594836,61277.0,61276.0,1.83339226]
[1726586381914,0.06594836,61277.0,61276.0,1.91497726]
[1726586382212,0.026,61277.0,61276.0,1.91497726]
[1726586382607,0.17742049,61300.0,61276.0,1.91497726]
[1726586382608,0.14567131,61291.0,61290.0,0.081567]
[1726586382909,0.16129546,61296.0,61290.0,0.3608]
[1726586383114,0.16129546,61296.0,61295.0,0.08156]
[1726586383309,0.16182841,61296.0,61294.0,0.43]
[1726586383514,0.16182841,61296.0,61294.0,0.511561]
[1726586383515,0.09000717,61295.0,61294.0,0.511561]
[1726586383814,0.3608,61308.0,61294.0,0.511561]
[1726586383815,0.16182841,61300.0,61295.0,0.48944]
[1726586384017,0.16182841,61305.0,61299.0,0.7908]
[1726586384219,0.16182841,61312.0,61310.0,0.08154]
[1726586384413,0.3392489,61320.0,61314.0,0.081534]
[1726586384613,0.16182841,61318.0,61309.0,0.3608]
[1726586384814,0.43,61321.0,61309.0,0.3608]
[1726586385016,0.081533,61316.0,61309.0,0.3608]
[1726586385209,0.16182841,61317.0,61309.0,0.3608]
[1726586385519,0.081533,61315.0,61309.0,0.3608]
[1726586385818,0.081535,61314.0,61309.0,0.3608]
[1726586386019,0.08154,61310.0,61309.0,0.3608]
[1726586386317,0.7908,61310.0,61305.0,0.00244678]
[1726586386504,0.081545,61306.0,61305.0,0.00244678]
[1726586386704,0.081545,61306.0,61295.0,0.00244705]
[1726586386705,0.47150179,61306.0,61295.0,0.00244705]
[1726586386918,0.081559,61296.0,61295.0,0.00244705]
[1726586387221,0.11306079,61296.0,61295.0,0.00244705]
[1726586387626,0.081566,61291.0,61282.0,0.3608]
[1726586387824,0.08157,61288.0,61282.0,0.3608]
[1726586388113,0.17742049,61321.0,61290.0,0.081566]
[1726586388316,0.16182841,61328.0,61314.0,0.43]
[1726586388612,0.081524,61322.0,61314.0,0.43]
[1726586388816,0.05004965,61321.0,61314.0,0.43]
[1726586389114,0.081518,61327.0,61314.0,0.43]
[1726586389314,0.8241,61331.0,61322.0,0.43]
[1726586389516,0.3608,61331.0,61322.0,0.43]
[1726586389818,0.4633,61344.0,61322.0,0.43]
[1726586389819,0.52262841,61340.0,61322.0,0.43]
[1726586390112,0.0500402,61339.0,61322.0,0.43]
[1726586390319,0.3608,61340.0,61315.0,0.00244637]
[1726586390320,0.43,61331.0,61315.0,0.00244637]
[1726586390512,0.05004269,61330.0,61320.0,0.511526]
[1726586390815,0.3608,61334.0,61322.0,0.014]
[1726586391010,0.05004321,61333.0,61322.0,0.014]
[1726586391212,0.44231,61333.0,61322.0,0.028]
[1726586391813,0.12143766,61332.0,61322.0,0.028]
[1726586392017,0.03992666,61331.0,61322.0,0.028]
[1726586392321,0.12144066,61330.0,61322.0,0.014]
[1726586392518,0.03992666,61329.0,61322.0,0.014]
[1726586392821,0.03992513,61328.0,61322.0,0.014]
[1726586393016,0.03992513,61327.0,61322.0,0.014]
[1726586393206,0.3608,61334.0,61322.0,0.014]
[1726586393207,0.03992513,61326.0,61322.0,0.014]
[1726586393409,0.081515,61329.0,61322.0,0.014]
[1726586393410,0.03992513,61325.0,61322.0,0.014]
[1726586393607,0.081518,61327.0,61322.0,0.028]
[1726586394020,0.3608,61334.0,61322.0,0.028]
[1726586394215,0.081521,61324.0,61322.0,0.028]
[1726586394619,0.081523,61323.0,61322.0,0.028]
[1726586395221,0.081518,61327.0,61322.0,0.028]
[1726586395419,0.3608,61329.0,61322.0,0.028]
[1726586395723,0.3608,61324.0,61322.0,0.014]
[1726586395919,0.3608,61324.0,61322.0,0.028]
[1726586396117,0.3608,61324.0,61322.0,0.014]
[1726586396418,0.02022947,61333.0,61327.0,0.081517]
[1726586396621,0.08151,61333.0,61323.0,0.3608]
[1726586396815,0.081516,61328.0,61323.0,0.3608]
[1726586397315,0.081516,61328.0,61322.0,0.028]
[1726586397721,0.3608,61335.0,61322.0,0.028]
[1726586397913,0.442307,61335.0,61322.0,0.028]
[1726586398119,0.081516,61328.0,61322.0,0.014]
[1726586398315,0.081518,61327.0,61323.0,0.014]
[1726586398516,0.081513,61331.0,61323.0,0.095523]
[1726586398718,0.081515,61330.0,61324.0,0.081521]
[1726586399023,0.081515,61330.0,61325.0,0.3608]
[1726586399224,0.081515,61330.0,61324.0,0.081521]
[1726586399426,0.081515,61330.0,61325.0,0.3608]
[1726586399615,0.3608,61335.0,61325.0,0.3608]
[1726586399820,0.442307,61335.0,61325.0,0.3608]
[1726586400219,0.081516,61328.0,61325.0,0.3608]
[1726586400426,0.081511,61332.0,61325.0,0.3608]
[1726586400616,0.3608,61335.0,61325.0,0.3608]
[1726586400817,0.081511,61333.0,61325.0,0.3608]
[1726586401122,0.03149191,61332.0,61325.0,0.3748]
[1726586401528,0.081519,61326.0,61325.0,0.014]
[1726586402126,0.3608,61330.0,61325.0,0.3888]
[1726586402324,0.3608,61330.0,61325.0,0.470319]
[1726586402636,0.3608,61330.0,61325.0,0.3888]
[1726586402829,0.3608,61330.0,61325.0,0.47032]
[1726586403032,0.3608,61330.0,61325.0,0.3888]
[1726586403928,0.442315,61330.0,61325.0,0.3888]
[1726586404319,0.3608,61330.0,61325.0,0.3888]
[1726586404531,0.081519,61326.0,61325.0,0.3888]
[1726586405027,0.081515,61329.0,61325.0,0.3748]
[1726586405227,0.3608,61330.0,61325.0,0.3888]
[1726586405729,0.08151,61333.0,61326.0,0.081518]
[1726586405934,0.36184001,61347.0,61332.0,0.08151]
[1726586406123,0.081506,61336.0,61331.0,0.3608]
[1726586406328,0.081495,61345.0,61331.0,0.3608]
[1726586406329,0.03148873,61335.0,61331.0,0.3608]
[1726586406529,0.03148873,61334.0,61331.0,0.3608]
[1726586406727,0.03148873,61333.0,61331.0,0.3608]
[1726586406922,0.03148873,61332.0,61331.0,0.3608]
[1726586407324,0.03148873,61332.0,61331.0,0.3748]
[1726586407635,0.081516,61328.0,61327.0,6.7e-07]
[1726586407823,0.081516,61328.0,61315.0,0.00244637]
[1726586407824,0.081518,61327.0,61326.0,0.014]
[1726586408126,0.23444382,61327.0,61326.0,0.014]
[1726586408335,0.15292582,61327.0,61326.0,0.014]
[1726586408541,0.15292582,61327.0,61315.0,0.00244637]
[1726586408542,0.07140782,61327.0,61315.0,0.00244637]
[1726586408927,0.26605994,61326.0,61315.0,0.00244637]
[1726586409125,0.081524,61323.0,61320.0,0.3608]
[1726586409428,0.07140782,61322.0,61320.0,0.3608]
[1726586409629,0.07141624,61321.0,61320.0,0.442327]
[1726586409936,0.001,61332.0,61320.0,1.88004]
[1726586410157,0.03991872,61331.0,61330.0,0.3608]
[1726586411431,0.03991872,61331.0,61329.0,0.3608]
[1726586411633,0.03991872,61330.0,61329.0,0.3608]
[1726586411835,0.03991872,61330.0,61329.0,0.442315]
[1726586412238,0.03991872,61330.0,61329.0,1.531475]
[1726586413040,0.03991872,61330.0,61329.0,0.945475]
[1726586413340,0.04091872,61330.0,61329.0,0.959475]
[1726586414036,0.04091872,61330.0,61329.0,0.3888]
[1726586414235,0.001,61330.0,61329.0,0.3888]
[1726586414431,0.1456058,61330.0,61329.0,0.3888]
[1726586414632,0.2271188,61330.0,61329.0,0.028]
[1726586414842,0.09095084,61330.0,61329.0,0.028]
[1726586415144,0.09095084,61330.0,61329.0,0.014]
[1726586415335,0.23699669,61330.0,61329.0,0.109515]
[1726586415533,0.09095084,61330.0,61329.0,0.109515]
[1726586415730,0.09095084,61330.0,61329.0,0.028]
[1726586416038,0.04091872,61330.0,61329.0,0.028]
[1726586416432,0.05104151,61330.0,61329.0,0.028]
[1726586416736,0.443313,61330.0,61329.0,0.028]
[1726586416935,0.61478706,61330.0,61329.0,0.028]
[1726586417137,1.70394706,61330.0,61329.0,0.028]
[1726586417441,0.081529,61318.0,61317.0,0.02086351]
[1726586417650,0.12144772,61318.0,61313.0,0.3608]
[1726586417837,0.08996106,61317.0,61313.0,0.3608]
[1726586418032,0.03991872,61316.0,61315.0,0.10429156]
[1726586418337,0.08996775,61316.0,61315.0,0.08397937]
[1726586418544,0.14624248,61319.0,61318.0,0.081529]
[1726586418740,0.08997298,61319.0,61317.0,0.014]
[1726586418941,0.04092709,61318.0,61317.0,0.015]
[1726586419433,0.04092709,61318.0,61317.0,0.082531]
[1726586419636,0.03992709,61318.0,61317.0,0.081531]
[1726586419832,0.14624248,61321.0,61315.0,0.37824637]
[1726586420039,0.3608,61325.0,61318.0,0.081529]
[1726586420040,0.14624248,61319.0,61318.0,0.081529]
[1726586420339,0.12146632,61319.0,61318.0,0.511529]
[1726586420530,0.14624248,61321.0,61318.0,1.51924]
[1726586420730,0.36184001,61343.0,61317.0,0.001]
[1726586420731,0.16249165,61332.0,61320.0,0.7908]
[1726586420934,0.10232598,61337.0,61327.0,0.3608]
[1726586420935,0.16249165,61333.0,61327.0,0.3608]
[1726586421241,0.16249165,61335.0,61327.0,0.3608]
[1726586421434,0.16249165,61335.0,61329.0,0.081515]
[1726586421635,0.52329165,61336.0,61329.0,0.081515]
[1726586421934,0.52329165,61336.0,61327.0,0.3608]
[1726586421935,0.3608,61336.0,61327.0,0.3608]
[1726586422640,0.001,61333.0,61327.0,0.3638]
[1726586423242,0.001,61333.0,61329.0,0.014]
[1726586423638,0.001,61333.0,61330.0,0.081513]
[1726586423837,0.001,61333.0,61329.0,0.014]
[1726586424236,0.001,61333.0,61332.0,0.3608]
[1726586424541,0.001,61336.0,61332.0,0.3608]
[1726586424747,0.16449165,61336.0,61332.0,0.3608]
[1726586424933,0.16349165,61336.0,61332.0,0.3608]
[1726586425130,0.001,61333.0,61332.0,0.3608]
[1726586425533,0.002,61333.0,61332.0,0.3748]
[1726586425942,0.002,61333.0,61332.0,0.028]
[1726586425943,0.41183718,61333.0,61332.0,0.028]
[1726586426141,0.49334618,61333.0,61332.0,0.028]
[1726586426346,0.65583783,61333.0,61332.0,0.028]
[1726586426547,0.49434618,61333.0,61332.0,0.028]
[1726586426845,0.21468567,61333.0,61332.0,0.028]